[Event "Titled Tuesday Blitz September 21 2021"]
[White "Shirazi, Kamran"]
[Black "Gabrielian, Artur"]
[WhiteFideId "2000733"]
[BlackFideId "4131002"]
[WhiteElo "2317"]
[BlackElo "2489"]
[Result "0-1"]
[Round "02"]
[TimeControl "180+1"]
[Date "2021.09.21"]
[WhiteClock "0:00:52"]
[BlackClock "0:02:02"]

1. g3 {[%clk 0:03:00]}  g6 {[%clk 0:02:59]} 2. Bg2 {[%clk 0:03:01]}  Bg7 {[%clk 0:02:59]} 3. Nf3 {[%clk 0:03:01]}  Nf6 {[%clk 0:02:59]} 4. d3 {[%clk 0:03:01]}  c5 {[%clk 0:02:58]} 5. e4 {[%clk 0:03:00]}  d6 {[%clk 0:02:58]} 6. e5 {[%clk 0:03:00]}  dxe5 {[%clk 0:02:58]} 7. Nxe5 {[%clk 0:03:00]}  O-O {[%clk 0:02:58]} 8. O-O {[%clk 0:02:59]}  Nbd7 {[%clk 0:02:58]} 9. Nf3 {[%clk 0:02:59]}  b6 {[%clk 0:02:57]} 10. Nd4 {[%clk 0:02:58]}  cxd4 {[%clk 0:02:54]} 11. Bxa8 {[%clk 0:02:57]}  Ne5 {[%clk 0:02:53]} 12. Bg2 {[%clk 0:02:27]}  Bg4 {[%clk 0:02:53]} 13. f3 {[%clk 0:02:27]}  Bd7 {[%clk 0:02:52]} 14. Re1 {[%clk 0:02:24]}  Nc6 {[%clk 0:02:52]} 15. Nd2 {[%clk 0:02:24]}  e5 {[%clk 0:02:52]} 16. Nc4 {[%clk 0:02:24]}  Nd5 {[%clk 0:02:52]} 17. f4 {[%clk 0:02:20]}  Ne3 {[%clk 0:02:50]} 18. Nxe3 {[%clk 0:02:17]}  dxe3 {[%clk 0:02:50]} 19. Bxe3 {[%clk 0:02:09]}  exf4 {[%clk 0:02:50]} 20. Bxf4 {[%clk 0:02:09]}  Bxb2 {[%clk 0:02:50]} 21. Bh6 {[%clk 0:02:06]}  Re8 {[%clk 0:02:47]} 22. Rxe8+ {[%clk 0:02:04]}  Qxe8 {[%clk 0:02:46]} 23. Qe1 {[%clk 0:02:03]}  Bd4+ {[%clk 0:02:33]} 24. Kh1 {[%clk 0:02:01]}  Bxa1 {[%clk 0:02:30]} 25. Qxa1 {[%clk 0:01:57]}  Ne5 {[%clk 0:02:29]} 26. h3 {[%clk 0:01:55]}  f6 {[%clk 0:02:29]} 27. Qd4 {[%clk 0:01:49]}  Bc6 {[%clk 0:02:21]} 28. Qf2 {[%clk 0:01:41]}  Bxg2+ {[%clk 0:02:17]} 29. Qxg2 {[%clk 0:01:40]}  g5 {[%clk 0:02:15]} 30. Qd5+ {[%clk 0:01:33]}  Nf7 {[%clk 0:02:15]} 31. h4 {[%clk 0:01:32]}  gxh4 {[%clk 0:02:06]} 32. gxh4 {[%clk 0:01:28]}  Qe1+ {[%clk 0:02:05]} 33. Kh2 {[%clk 0:01:27]}  Qxh4+ {[%clk 0:02:04]} 34. Kg2 {[%clk 0:01:21]}  Qxh6 {[%clk 0:02:04]} 35. Qa8+ {[%clk 0:01:15]}  Kg7 {[%clk 0:02:04]} 36. Qxa7 {[%clk 0:01:16]}  Qd2+ {[%clk 0:02:04]} 37. Kg3 {[%clk 0:01:16]}  Qxc2 {[%clk 0:02:03]} 38. Qa6 {[%clk 0:01:08]}  Qc7+ {[%clk 0:02:03]} 39. Kg2 {[%clk 0:01:07]}  h5 {[%clk 0:02:03]} 40. a4 {[%clk 0:01:07]}  h4 {[%clk 0:02:02]} 41. Qb5 {[%clk 0:01:07]}  Qg3+ {[%clk 0:02:02]} 42. Kh1 {[%clk 0:01:06]}  h3 {[%clk 0:02:02]} 43. Qc6 {[%clk 0:01:03]}  Qxd3 {[%clk 0:02:02]} 44. Kh2 {[%clk 0:00:52]}  Qd6+ {[%clk 0:02:02]} 0-1


[Site "https://www.chess.com"]

[Event "Titled Tuesday Blitz September 21 2021"]
[White "Shvedova, Alexandra"]
[Black "Solon, Nathan"]
[WhiteFideId "54154782"]
[BlackFideId "2017229"]
[WhiteElo "1887"]
[BlackElo "2688"]
[Result "0-1"]
[Round "02"]
[TimeControl "180+1"]
[Date "2021.09.21"]
[WhiteClock "0:00:22"]
[BlackClock "0:00:19"]

1. e4 {[%clk 0:03:00]}  c6 {[%clk 0:03:00]} 2. d4 {[%clk 0:03:00]}  d5 {[%clk 0:03:01]} 3. e5 {[%clk 0:03:01]}  Bf5 {[%clk 0:03:01]} 4. h4 {[%clk 0:03:01]}  h5 {[%clk 0:03:00]} 5. Bd3 {[%clk 0:03:01]}  Bxd3 {[%clk 0:03:00]} 6. Qxd3 {[%clk 0:03:02]}  Qa5+ {[%clk 0:03:00]} 7. Nd2 {[%clk 0:03:02]}  Qa6 {[%clk 0:03:00]} 8. c4 {[%clk 0:03:02]}  e6 {[%clk 0:02:56]} 9. Ngf3 {[%clk 0:03:00]}  Nh6 {[%clk 0:02:54]} 10. b3 {[%clk 0:02:59]}  Nf5 {[%clk 0:02:54]} 11. O-O {[%clk 0:02:59]}  Nd7 {[%clk 0:02:54]} 12. a4 {[%clk 0:02:58]}  Be7 {[%clk 0:02:50]} 13. g3 {[%clk 0:02:58]}  O-O-O {[%clk 0:02:27]} 14. Ba3 {[%clk 0:02:54]}  Bxa3 {[%clk 0:02:22]} 15. Rxa3 {[%clk 0:02:54]}  dxc4 {[%clk 0:02:11]} 16. bxc4 {[%clk 0:02:47]}  f6 {[%clk 0:01:40]} 17. exf6 {[%clk 0:02:34]}  Nxf6 {[%clk 0:01:37]} 18. Ne4 {[%clk 0:02:14]}  Nxe4 {[%clk 0:01:24]} 19. Qxe4 {[%clk 0:02:14]}  Qxc4 {[%clk 0:01:24]} 20. Ng5 {[%clk 0:01:54]}  Rxd4 {[%clk 0:01:13]} 21. Qxe6+ {[%clk 0:01:51]}  Qxe6 {[%clk 0:01:13]} 22. Nxe6 {[%clk 0:01:52]}  Rd6 {[%clk 0:01:08]} 23. Ng5 {[%clk 0:01:50]}  Rf8 {[%clk 0:01:01]} 24. Re1 {[%clk 0:01:48]}  Kd7 {[%clk 0:00:56]} 25. Ne4 {[%clk 0:01:31]}  Rd5 {[%clk 0:00:56]} 26. Rb3 {[%clk 0:01:29]}  b6 {[%clk 0:00:55]} 27. Ng5 {[%clk 0:01:26]}  Nd4 {[%clk 0:00:54]} 28. Rbe3 {[%clk 0:01:22]}  Nf5 {[%clk 0:00:44]} 29. Re6 {[%clk 0:01:20]}  Rd6 {[%clk 0:00:41]} 30. R6e5 {[%clk 0:01:18]}  c5 {[%clk 0:00:38]} 31. Ne6 {[%clk 0:01:17]}  Rf6 {[%clk 0:00:36]} 32. Nf4 {[%clk 0:01:14]}  Nd4 {[%clk 0:00:35]} 33. Kg2 {[%clk 0:01:08]}  Ne6 {[%clk 0:00:27]} 34. Nxh5 {[%clk 0:01:07]}  Rg6 {[%clk 0:00:28]} 35. R5e4 {[%clk 0:00:59]}  a6 {[%clk 0:00:26]} 36. Nf4 {[%clk 0:00:59]}  Nxf4+ {[%clk 0:00:26]} 37. Rxf4 {[%clk 0:01:00]}  Rgf6 {[%clk 0:00:25]} 38. Rfe4 {[%clk 0:00:57]}  b5 {[%clk 0:00:24]} 39. axb5 {[%clk 0:00:56]}  axb5 {[%clk 0:00:25]} 40. Re7+ {[%clk 0:00:56]}  Kc6 {[%clk 0:00:26]} 41. Rxg7 {[%clk 0:00:57]}  b4 {[%clk 0:00:26]} 42. Ree7 {[%clk 0:00:55]}  b3 {[%clk 0:00:23]} 43. Rc7+ {[%clk 0:00:54]}  Kb5 {[%clk 0:00:24]} 44. Rg5 {[%clk 0:00:50]}  Rc6 {[%clk 0:00:22]} 45. Rb7+ {[%clk 0:00:49]}  Kc4 {[%clk 0:00:21]} 46. Re5 {[%clk 0:00:43]}  Rb6 {[%clk 0:00:20]} 47. Rc7 {[%clk 0:00:35]}  Rfc6 {[%clk 0:00:19]} 48. Rxc6 {[%clk 0:00:34]}  Rxc6 {[%clk 0:00:20]} 49. h5 {[%clk 0:00:32]}  b2 {[%clk 0:00:20]} 50. Re1 {[%clk 0:00:32]}  Kd3 {[%clk 0:00:19]} 51. g4 {[%clk 0:00:31]}  c4 {[%clk 0:00:19]} 52. g5 {[%clk 0:00:31]}  c3 {[%clk 0:00:20]} 53. h6 {[%clk 0:00:30]}  c2 {[%clk 0:00:20]} 54. h7 {[%clk 0:00:30]}  Rc8 {[%clk 0:00:20]} 55. g6 {[%clk 0:00:29]}  c1=Q {[%clk 0:00:20]} 56. g7 {[%clk 0:00:25]}  Qg5+ {[%clk 0:00:19]} 57. Kf1 {[%clk 0:00:25]}  Qxg7 {[%clk 0:00:19]} 58. Re3+ {[%clk 0:00:25]}  Kc2 {[%clk 0:00:18]} 59. Re2+ {[%clk 0:00:23]}  Kb3 {[%clk 0:00:18]} 60. Re3+ {[%clk 0:00:22]}  Ka2 {[%clk 0:00:19]} 0-1


[Site "https://www.chess.com"]

[Event "Titled Tuesday Blitz September 21 2021"]
[White "Siva Mahadevan"]
[Black "Manukyan, Sargis A."]
[WhiteFideId "25043153"]
[BlackFideId "13303970"]
[WhiteElo "2203"]
[BlackElo "2187"]
[Result "0-1"]
[Round "02"]
[TimeControl "180+1"]
[Date "2021.09.21"]
[WhiteClock "0:00:25"]
[BlackClock "0:00:27"]

1. e4 {[%clk 0:03:00]}  c5 {[%clk 0:02:59]} 2. Nf3 {[%clk 0:03:01]}  d6 {[%clk 0:02:59]} 3. d4 {[%clk 0:03:01]}  cxd4 {[%clk 0:02:59]} 4. Nxd4 {[%clk 0:03:02]}  Nf6 {[%clk 0:02:59]} 5. Nc3 {[%clk 0:03:03]}  g6 {[%clk 0:02:59]} 6. Be3 {[%clk 0:03:03]}  Bg7 {[%clk 0:02:59]} 7. f3 {[%clk 0:03:04]}  O-O {[%clk 0:02:59]} 8. Qd2 {[%clk 0:03:04]}  Nc6 {[%clk 0:02:59]} 9. Bc4 {[%clk 0:03:05]}  Bd7 {[%clk 0:02:58]} 10. h4 {[%clk 0:03:05]}  Rc8 {[%clk 0:02:58]} 11. Bb3 {[%clk 0:03:05]}  Nxd4 {[%clk 0:02:58]} 12. Bxd4 {[%clk 0:03:06]}  b5 {[%clk 0:02:59]} 13. h5 {[%clk 0:03:06]}  a5 {[%clk 0:02:56]} 14. hxg6 {[%clk 0:03:06]}  hxg6 {[%clk 0:02:57]} 15. Nd5 {[%clk 0:03:02]}  a4 {[%clk 0:02:09]} 16. Nxf6+ {[%clk 0:02:56]}  exf6 {[%clk 0:02:07]} 17. Bd5 {[%clk 0:02:48]}  Be6 {[%clk 0:02:07]} 18. Bc3 {[%clk 0:02:35]}  Bxd5 {[%clk 0:02:04]} 19. Qxd5 {[%clk 0:02:36]}  Rxc3 {[%clk 0:02:01]} 20. bxc3 {[%clk 0:02:36]}  f5 {[%clk 0:01:59]} 21. Kf1 {[%clk 0:01:44]}  fxe4 {[%clk 0:01:54]} 22. Qxe4 {[%clk 0:01:45]}  Re8 {[%clk 0:01:49]} 23. Qh4 {[%clk 0:01:42]}  Qc7 {[%clk 0:01:39]} 24. Re1 {[%clk 0:01:33]}  Rc8 {[%clk 0:01:21]} 25. Re3 {[%clk 0:01:04]}  d5 {[%clk 0:01:04]} 26. Rd3 {[%clk 0:00:46]}  d4 {[%clk 0:01:03]} 27. Kf2 {[%clk 0:00:34]}  Qc4 {[%clk 0:00:53]} 28. a3 {[%clk 0:00:31]}  Qa2 {[%clk 0:00:52]} 29. Rxd4 {[%clk 0:00:25]}  Qxc2+ {[%clk 0:00:46]} 30. Kg3 {[%clk 0:00:26]}  Be5+ {[%clk 0:00:43]} 31. Rf4 {[%clk 0:00:20]}  Bxf4+ {[%clk 0:00:38]} 32. Qxf4 {[%clk 0:00:21]}  Qxc3 {[%clk 0:00:36]} 33. Qh6 {[%clk 0:00:20]}  Qe5+ {[%clk 0:00:35]} 34. f4 {[%clk 0:00:19]}  Rc3+ {[%clk 0:00:29]} 35. Kh2 {[%clk 0:00:20]}  Qh5+ {[%clk 0:00:26]} 36. Qxh5 {[%clk 0:00:20]}  gxh5 {[%clk 0:00:27]} 37. Rb1 {[%clk 0:00:21]}  Rb3 {[%clk 0:00:26]} 38. Rc1 {[%clk 0:00:19]}  Rxa3 {[%clk 0:00:25]} 39. Rc5 {[%clk 0:00:20]}  Rb3 {[%clk 0:00:26]} 40. Rg5+ {[%clk 0:00:20]}  Kf8 {[%clk 0:00:25]} 41. Rxh5 {[%clk 0:00:20]}  a3 {[%clk 0:00:26]} 42. Rh8+ {[%clk 0:00:21]}  Kg7 {[%clk 0:00:26]} 43. Ra8 {[%clk 0:00:22]}  b4 {[%clk 0:00:26]} 44. g3 {[%clk 0:00:22]}  Rb2+ {[%clk 0:00:27]} 45. Kh3 {[%clk 0:00:23]}  a2 {[%clk 0:00:28]} 46. Kh4 {[%clk 0:00:24]}  b3 {[%clk 0:00:28]} 47. Kg5 {[%clk 0:00:25]}  Rb1 {[%clk 0:00:27]} 0-1


[Site "https://www.chess.com"]

[Event "Titled Tuesday Blitz September 21 2021"]
[White "Stoyanov, Tsvetan"]
[Black "Chos, Alexey"]
[WhiteFideId "2917173"]
[BlackFideId "14117762"]
[WhiteElo "2191"]
[BlackElo "2234"]
[Result "1-0"]
[Round "02"]
[TimeControl "180+1"]
[Date "2021.09.21"]
[WhiteClock "0:00:14"]
[BlackClock "0:00:16"]

1. b3 {[%clk 0:03:00]}  d5 {[%clk 0:02:52]} 2. Bb2 {[%clk 0:03:01]}  Nf6 {[%clk 0:02:51]} 3. Nf3 {[%clk 0:03:01]}  e6 {[%clk 0:02:51]} 4. e3 {[%clk 0:03:01]}  Nbd7 {[%clk 0:02:51]} 5. c4 {[%clk 0:03:02]}  Bd6 {[%clk 0:02:51]} 6. Nc3 {[%clk 0:03:02]}  c5 {[%clk 0:02:52]} 7. d4 {[%clk 0:03:02]}  a6 {[%clk 0:02:52]} 8. cxd5 {[%clk 0:02:59]}  exd5 {[%clk 0:02:51]} 9. Bd3 {[%clk 0:02:59]}  O-O {[%clk 0:02:50]} 10. O-O {[%clk 0:02:59]}  h6 {[%clk 0:02:50]} 11. h3 {[%clk 0:02:59]}  b5 {[%clk 0:02:47]} 12. dxc5 {[%clk 0:02:54]}  Nxc5 {[%clk 0:02:45]} 13. Rc1 {[%clk 0:02:44]}  Bb7 {[%clk 0:02:45]} 14. Bb1 {[%clk 0:02:41]}  Rc8 {[%clk 0:02:38]} 15. Nd4 {[%clk 0:02:36]}  b4 {[%clk 0:02:32]} 16. Nce2 {[%clk 0:02:36]}  Be5 {[%clk 0:02:29]} 17. Ne6 {[%clk 0:02:25]}  fxe6 {[%clk 0:01:56]} 18. Bxe5 {[%clk 0:02:24]}  Qe7 {[%clk 0:01:50]} 19. Qd4 {[%clk 0:02:09]}  Ncd7 {[%clk 0:01:49]} 20. Nf4 {[%clk 0:02:05]}  Rxc1 {[%clk 0:01:37]} 21. Rxc1 {[%clk 0:02:06]}  Rc8 {[%clk 0:01:35]} 22. Rxc8+ {[%clk 0:01:56]}  Bxc8 {[%clk 0:01:36]} 23. Ng6 {[%clk 0:01:56]}  Qd8 {[%clk 0:01:27]} 24. Qxb4 {[%clk 0:01:52]}  Nxe5 {[%clk 0:01:25]} 25. Nxe5 {[%clk 0:01:53]}  Qc7 {[%clk 0:01:24]} 26. Nd3 {[%clk 0:01:44]}  e5 {[%clk 0:01:24]} 27. Qc5 {[%clk 0:01:38]}  Qxc5 {[%clk 0:01:22]} 28. Nxc5 {[%clk 0:01:38]}  Kf8 {[%clk 0:01:20]} 29. b4 {[%clk 0:01:36]}  Ke7 {[%clk 0:01:20]} 30. Bd3 {[%clk 0:01:35]}  a5 {[%clk 0:01:14]} 31. bxa5 {[%clk 0:01:29]}  Kd6 {[%clk 0:01:14]} 32. Nb3 {[%clk 0:01:26]}  Nd7 {[%clk 0:01:15]} 33. Bf5 {[%clk 0:01:12]}  Kc6 {[%clk 0:01:10]} 34. f4 {[%clk 0:01:03]}  exf4 {[%clk 0:01:06]} 35. exf4 {[%clk 0:01:04]}  Kb5 {[%clk 0:01:05]} 36. Kf2 {[%clk 0:00:53]}  Kc4 {[%clk 0:00:55]} 37. Ke3 {[%clk 0:00:47]}  Kc3 {[%clk 0:00:49]} 38. Nd4 {[%clk 0:00:44]}  Kc4 {[%clk 0:00:46]} 39. a6 {[%clk 0:00:30]}  Nb6 {[%clk 0:00:39]} 40. Bxc8 {[%clk 0:00:22]}  Nxc8 {[%clk 0:00:40]} 41. g4 {[%clk 0:00:19]}  Na7 {[%clk 0:00:26]} 42. h4 {[%clk 0:00:17]}  Kc3 {[%clk 0:00:24]} 43. h5 {[%clk 0:00:17]}  Kc4 {[%clk 0:00:22]} 44. g5 {[%clk 0:00:17]}  Kc3 {[%clk 0:00:19]} 45. gxh6 {[%clk 0:00:15]}  gxh6 {[%clk 0:00:20]} 46. f5 {[%clk 0:00:15]}  Nc8 {[%clk 0:00:16]} 47. f6 {[%clk 0:00:15]}  Nd6 {[%clk 0:00:16]} 48. a7 {[%clk 0:00:15]}  Nc4+ {[%clk 0:00:16]} 49. Ke2 {[%clk 0:00:15]}  Nb6 {[%clk 0:00:16]} 50. f7 {[%clk 0:00:14]} 1-0


[Site "https://www.chess.com"]

[Event "Titled Tuesday Blitz September 21 2021"]
[White "Suvorov, Luca"]
[Black "Anuj Shrivatri"]
[WhiteFideId "12977071"]
[BlackFideId "35070924"]
[WhiteElo "2127"]
[BlackElo "2038"]
[Result "0-1"]
[Round "02"]
[TimeControl "180+1"]
[Date "2021.09.21"]
[WhiteClock "0:00:02"]
[BlackClock "0:00:32"]

1. d4 {[%clk 0:03:00]}  Nf6 {[%clk 0:02:53]} 2. c4 {[%clk 0:03:00]}  e6 {[%clk 0:02:53]} 3. Nf3 {[%clk 0:02:57]}  d5 {[%clk 0:02:53]} 4. Nc3 {[%clk 0:02:55]}  Bb4 {[%clk 0:02:49]} 5. Bg5 {[%clk 0:02:53]}  h6 {[%clk 0:02:48]} 6. Bxf6 {[%clk 0:02:53]}  Qxf6 {[%clk 0:02:49]} 7. Rc1 {[%clk 0:02:53]}  O-O {[%clk 0:02:48]} 8. e3 {[%clk 0:02:53]}  c6 {[%clk 0:02:44]} 9. Bd3 {[%clk 0:02:51]}  Nd7 {[%clk 0:02:43]} 10. O-O {[%clk 0:02:51]}  Qe7 {[%clk 0:02:38]} 11. a3 {[%clk 0:02:50]}  Bxc3 {[%clk 0:02:38]} 12. Rxc3 {[%clk 0:02:51]}  e5 {[%clk 0:02:38]} 13. dxe5 {[%clk 0:02:41]}  dxc4 {[%clk 0:02:37]} 14. Bxc4 {[%clk 0:02:13]}  Nxe5 {[%clk 0:02:35]} 15. Nxe5 {[%clk 0:02:14]}  Qxe5 {[%clk 0:02:35]} 16. f4 {[%clk 0:02:15]}  Qe7 {[%clk 0:02:33]} 17. Qf3 {[%clk 0:02:13]}  Bf5 {[%clk 0:02:32]} 18. Bd3 {[%clk 0:02:03]}  Bxd3 {[%clk 0:02:25]} 19. Rxd3 {[%clk 0:02:04]}  Rad8 {[%clk 0:02:25]} 20. Rfd1 {[%clk 0:02:03]}  Rxd3 {[%clk 0:02:25]} 21. Rxd3 {[%clk 0:02:04]}  Re8 {[%clk 0:02:25]} 22. h3 {[%clk 0:01:56]}  c5 {[%clk 0:02:24]} 23. a4 {[%clk 0:01:51]}  b6 {[%clk 0:02:21]} 24. b3 {[%clk 0:01:51]}  Qe4 {[%clk 0:02:11]} 25. Qxe4 {[%clk 0:01:48]}  Rxe4 {[%clk 0:02:11]} 26. Kf2 {[%clk 0:01:47]}  f6 {[%clk 0:01:57]} 27. Kf3 {[%clk 0:01:00]}  Rb4 {[%clk 0:01:56]} 28. g4 {[%clk 0:00:59]}  c4 {[%clk 0:01:48]} 29. bxc4 {[%clk 0:00:59]}  Rxa4 {[%clk 0:01:47]} 30. Rc3 {[%clk 0:00:56]}  Ra5 {[%clk 0:01:46]} 31. Ke4 {[%clk 0:00:48]}  Kf7 {[%clk 0:01:43]} 32. Kd4 {[%clk 0:00:48]}  Ke6 {[%clk 0:01:40]} 33. h4 {[%clk 0:00:46]}  h5 {[%clk 0:01:34]} 34. gxh5 {[%clk 0:00:20]}  Kd6 {[%clk 0:01:19]} 35. Rc1 {[%clk 0:00:09]}  Rxh5 {[%clk 0:01:16]} 36. Rg1 {[%clk 0:00:10]}  Rh7 {[%clk 0:01:15]} 37. e4 {[%clk 0:00:07]}  a5 {[%clk 0:01:09]} 38. f5 {[%clk 0:00:04]}  Kc6 {[%clk 0:00:55]} 39. Rg6 {[%clk 0:00:04]}  Kc7 {[%clk 0:00:55]} 40. h5 {[%clk 0:00:04]}  a4 {[%clk 0:00:51]} 41. h6 {[%clk 0:00:04]}  gxh6 {[%clk 0:00:49]} 42. Rxf6 {[%clk 0:00:04]}  h5 {[%clk 0:00:44]} 43. Rg6 {[%clk 0:00:04]}  h4 {[%clk 0:00:44]} 44. Rg2 {[%clk 0:00:04]}  h3 {[%clk 0:00:44]} 45. Rh2 {[%clk 0:00:05]}  Rh4 {[%clk 0:00:43]} 46. Kd5 {[%clk 0:00:05]}  a3 {[%clk 0:00:42]} 47. f6 {[%clk 0:00:05]}  Kd7 {[%clk 0:00:41]} 48. e5 {[%clk 0:00:05]}  Rh5 {[%clk 0:00:36]} 49. Rf2 {[%clk 0:00:03]}  h2 {[%clk 0:00:35]} 50. Rxh2 {[%clk 0:00:02]}  Rxh2 {[%clk 0:00:35]} 51. e6+ {[%clk 0:00:03]}  Ke8 {[%clk 0:00:35]} 52. Kc6 {[%clk 0:00:03]}  a2 {[%clk 0:00:34]} 53. Kd6 {[%clk 0:00:02]}  Rd2+ {[%clk 0:00:32]} 0-1


[Site "https://www.chess.com"]

[Event "Titled Tuesday Blitz September 21 2021"]
[White "Svane, Rasmus"]
[Black "Kumala, Aleksander"]
[WhiteFideId "4657101"]
[BlackFideId "1141880"]
[WhiteElo "2643"]
[BlackElo "2269"]
[Result "1-0"]
[Round "02"]
[TimeControl "180+1"]
[Date "2021.09.21"]
[WhiteClock "0:00:07"]
[BlackClock "0:00:05"]

1. Nf3 {[%clk 0:03:00]}  Nf6 {[%clk 0:02:59]} 2. g3 {[%clk 0:03:00]}  b5 {[%clk 0:02:59]} 3. Bg2 {[%clk 0:02:58]}  d5 {[%clk 0:02:59]} 4. d3 {[%clk 0:02:57]}  e6 {[%clk 0:02:57]} 5. O-O {[%clk 0:02:55]}  c5 {[%clk 0:02:57]} 6. c4 {[%clk 0:02:54]}  bxc4 {[%clk 0:02:46]} 7. dxc4 {[%clk 0:02:53]}  Be7 {[%clk 0:02:29]} 8. Nc3 {[%clk 0:02:33]}  Bb7 {[%clk 0:02:28]} 9. cxd5 {[%clk 0:02:31]}  exd5 {[%clk 0:02:27]} 10. Bg5 {[%clk 0:02:32]}  d4 {[%clk 0:02:21]} 11. Na4 {[%clk 0:02:24]}  Nbd7 {[%clk 0:02:14]} 12. Rc1 {[%clk 0:02:17]}  Rc8 {[%clk 0:02:14]} 13. Qb3 {[%clk 0:02:13]}  Ba8 {[%clk 0:02:11]} 14. e3 {[%clk 0:01:44]}  dxe3 {[%clk 0:02:09]} 15. Bxe3 {[%clk 0:01:38]}  O-O {[%clk 0:02:09]} 16. Rfd1 {[%clk 0:01:38]}  Qc7 {[%clk 0:02:02]} 17. Bf4 {[%clk 0:01:38]}  Qa5 {[%clk 0:01:57]} 18. Nd2 {[%clk 0:01:25]}  Bxg2 {[%clk 0:01:56]} 19. Kxg2 {[%clk 0:01:26]}  Nb6 {[%clk 0:01:48]} 20. Nc3 {[%clk 0:01:24]}  c4 {[%clk 0:01:43]} 21. Qb5 {[%clk 0:01:24]}  Qxb5 {[%clk 0:01:36]} 22. Nxb5 {[%clk 0:01:25]}  Rc5 {[%clk 0:01:37]} 23. Nxa7 {[%clk 0:00:37]}  Ra8 {[%clk 0:01:36]} 24. b4 {[%clk 0:00:37]}  cxb3 {[%clk 0:01:30]} 25. Rxc5 {[%clk 0:00:38]}  Bxc5 {[%clk 0:01:30]} 26. Nxb3 {[%clk 0:00:38]}  Bf8 {[%clk 0:01:22]} 27. Nc6 {[%clk 0:00:37]}  Rxa2 {[%clk 0:01:18]} 28. Rd8 {[%clk 0:00:36]}  Ra8 {[%clk 0:01:18]} 29. Bb8 {[%clk 0:00:30]}  Nbd7 {[%clk 0:01:13]} 30. Nc5 {[%clk 0:00:24]}  Rxb8 {[%clk 0:00:42]} 31. Nxd7 {[%clk 0:00:24]}  Nxd7 {[%clk 0:00:31]} 32. Nxb8 {[%clk 0:00:23]}  Nxb8 {[%clk 0:00:31]} 33. Rxb8 {[%clk 0:00:24]}  g6 {[%clk 0:00:32]} 34. f4 {[%clk 0:00:20]}  h5 {[%clk 0:00:32]} 35. Kf3 {[%clk 0:00:20]}  Kg7 {[%clk 0:00:32]} 36. Rb5 {[%clk 0:00:17]}  Be7 {[%clk 0:00:30]} 37. Ke4 {[%clk 0:00:16]}  Bf6 {[%clk 0:00:30]} 38. Rc5 {[%clk 0:00:14]}  Bb2 {[%clk 0:00:30]} 39. Rc4 {[%clk 0:00:14]}  Ba1 {[%clk 0:00:29]} 40. Rc2 {[%clk 0:00:11]}  Bf6 {[%clk 0:00:29]} 41. Ra2 {[%clk 0:00:12]}  Bc3 {[%clk 0:00:29]} 42. Ra6 {[%clk 0:00:12]}  Bb2 {[%clk 0:00:26]} 43. Rc6 {[%clk 0:00:12]}  Ba1 {[%clk 0:00:26]} 44. h3 {[%clk 0:00:13]}  Bb2 {[%clk 0:00:25]} 45. Rc7 {[%clk 0:00:09]}  Ba1 {[%clk 0:00:22]} 46. Kd5 {[%clk 0:00:09]}  Bb2 {[%clk 0:00:22]} 47. Rc2 {[%clk 0:00:07]}  Bf6 {[%clk 0:00:20]} 48. Kd6 {[%clk 0:00:07]}  Bd4 {[%clk 0:00:20]} 49. Ke7 {[%clk 0:00:06]}  Be3 {[%clk 0:00:15]} 50. Rc4 {[%clk 0:00:02]}  Bf2 {[%clk 0:00:14]} 51. g4 {[%clk 0:00:03]}  hxg4 {[%clk 0:00:15]} 52. hxg4 {[%clk 0:00:04]}  Be3 {[%clk 0:00:15]} 53. f5 {[%clk 0:00:03]}  gxf5 {[%clk 0:00:13]} 54. gxf5 {[%clk 0:00:04]}  Bg5+ {[%clk 0:00:05]} 55. Kd6 {[%clk 0:00:05]}  Kf6 {[%clk 0:00:05]} 56. Rc5 {[%clk 0:00:05]}  Bf4+ {[%clk 0:00:05]} 57. Kc6 {[%clk 0:00:05]}  Be3 {[%clk 0:00:05]} 58. Rd5 {[%clk 0:00:06]}  Bf4 {[%clk 0:00:05]} 59. Kc5 {[%clk 0:00:06]}  Be3+ {[%clk 0:00:05]} 60. Kc4 {[%clk 0:00:06]}  Ba7 {[%clk 0:00:06]} 61. Kd3 {[%clk 0:00:07]}  Bb8 {[%clk 0:00:06]} 62. Ke4 {[%clk 0:00:07]}  Bc7 {[%clk 0:00:06]} 63. Rc5 {[%clk 0:00:07]}  Bb8 {[%clk 0:00:05]} 64. Rc6+ {[%clk 0:00:08]}  Ke7 {[%clk 0:00:06]} 65. Kd5 {[%clk 0:00:08]}  Bf4 {[%clk 0:00:05]} 66. Rb6 {[%clk 0:00:08]}  Be3 {[%clk 0:00:04]} 67. f6+ {[%clk 0:00:08]}  Kd7 {[%clk 0:00:04]} 68. Rb7+ {[%clk 0:00:09]}  Ke8 {[%clk 0:00:05]} 69. Re7+ {[%clk 0:00:07]} 1-0


[Site "https://www.chess.com"]